[Event "10th Norway Chess 2022"]
[Site "Stavanger"]
[Date "2022.06.10"]
[Round "9.1"]
[White "Wang, Hao"]
[Black "So, Wesley"]
[Result "1/2-1/2"]
[ECO "C67"]
[WhiteElo "2744"]
[BlackElo "2766"]
[Annotator "TA"]
[PlyCount "56"]
[EventDate "2022.05.30"]
[EventType "tourn"]
[EventCountry "NOR"]
[SourceTitle "playchess.com"]
[Source "ChessBase"]
[SourceQuality "1"]
[TimeControl "40/7200:0"]

{[%evp 18,56,19,12,20,20,10,13,15,19,20,14,12,9,12,4,9,2,5,8,6,0,0,0,0,0,0,0,0,0,0,0,0,0,0,0,0,0,0,0,0]} 1. e4 {[%emt 0:00:04]} e5 {[%emt 0:00:57]} 2. Nf3 {[%emt 0:00:06]} Nc6 {[%emt 0:00:05]} 3. Bb5 {[%emt 0:00:03]} Nf6 {[%emt 0:00:24]} 4. O-O {[%emt 0:00:09][%cal Bh1f1,Bf1e1,Be1e5][%mdl 32]} Nxe4 {[%emt 0:00:16]} 5. Re1 {[%emt 0:00:05]} Nd6 {[%emt 0:00:05]} 6. Nxe5 {[%emt 0:00:06]} Be7 {[%emt 0:00:05]} 7. Bf1 {[%emt 0:00:06]} Nxe5 {[%emt 0:00:23]} 8. Rxe5 {[%emt 0:00:06]} O-O {[%emt 0:00:06]} 9. d4 {[%emt 0:00:26]} Bf6 {[%emt 0:00:30]} 10. Re1 {[%emt 0:00:07] The position is equal.} Re8 {[%emt 0:00:05] C67: Ruy Lopez: Berlin Defence: 4 0-0 Nxe4.} 11. Bf4 {[%emt 0:02:32]} Rxe1 {[%emt 0:00:21]} 12. Qxe1 {[%emt 0:00:04]} Ne8 {[%emt 0:00:04]} 13. c3 {[%emt 0:00:55]} d5 {[%emt 0:00:49]} 14. Bd3 {[%emt 0:00:15]} g6 {[%emt 0:09:29]} 15. Nd2 {[%emt 0:00:43][%cal Bb1d2,Bd2f3,Bf3e5][%mdl 32]} Ng7 {[%emt 0:01:52]} 16. Qe2 {[%emt 0:02:37]} c6 {[%emt 0:04:47]} 17. Re1 {[%emt 0:01:54]} Bf5 {[%emt 0:03:18]} 18. Bxf5 {[%emt 0:00:12]} Nxf5 {[%emt 0:00:09]} 19. Nf3 {[%emt 0:00:18]} Ng7 {[%emt 0:04:03]} 20. Be5 {[%emt 0:11:55]} Bxe5 {[%emt 0:04:47]} 21. Nxe5 {[%emt 0:00:59]} Qd6 {[%emt 0:00:06]} 22. Qf3 {[%emt 0:01:49]} f6 {[%emt 0:00:44]} 23. Ng4 {[%emt 0:02:54]} Re8 {[%emt 0:00:12][%cal Re8e1] [#]} 24. Re5 $146 {[%emt 0:05:10]} ({Predecessor:} 24. Rxe8+ Nxe8 25. g3 h5 26. Qe2 Kf7 27. Ne3 Qe6 28. f3 Nd6 29. Kf2 Qh3 30. Kg1 Qe6 31. Kf2 Qh3 32. Kg1 Qe6 {½-½ (32) Aronian,L (2781)-So,W (2770) chess24.com INT 2020}) 24... Kf7 {[%emt 0:02:27]} (24... fxe5 $2 25. Nh6+ Kh8 26. Nf7+ Kg8 27. Nxd6 $18) 25. Nh6+ {[%emt 0:01:49]} Kf8 {[%emt 0:01:12]} 26. Ng4 {[%emt 0:00:07]} Kf7 {[%emt 0:00:06]} 27. Nh6+ {[%emt 0:00:05]} Kf8 {[%emt 0:00:06]} 28. Ng4 {[%emt 0:00:04]} Kf7 {[%emt 0:00:05] A balanced but interesting game.  Weighted Error Value: White=0.02 (flawless) /Black=0.00 (flawless)} 1/2-1/2

[Event "10th Norway Chess 2022"]
[Site "Stavanger"]
[Date "2022.06.10"]
[Round "9.1"]
[White "Topalov, Veselin"]
[Black "Carlsen, Magnus"]
[Result "1/2-1/2"]
[ECO "C54"]
[WhiteElo "2730"]
[BlackElo "2864"]
[Annotator "TA"]
[PlyCount "69"]
[EventDate "2022.05.30"]
[EventType "tourn"]
[EventCountry "NOR"]
[SourceTitle "playchess.com"]
[Source "ChessBase"]
[SourceQuality "1"]
[TimeControl "40/7200:0"]

{[%evp 10,69,14,12,13,11,29,17,19,12,14,12,12,12,9,9,12,9,10,10,12,12,12,12,14,14,21,21,21,21,21,21,47,47,39,33,26,22,39,10,0,8,8,3,28,22,31,19,29,18,42,21,21,24,24,24,32,17,9,0,0,0]} 1. e4 {[%emt 0:00:03]} e5 {[%emt 0:00:05]} 2. Nf3 {[%emt 0:00:06]} Nc6 {[%emt 0:00:11]} 3. Bc4 {[%emt 0:00:05]} Nf6 {[%emt 0:00:06]} 4. d3 {[%emt 0:00:06]} Bc5 {[%emt 0:00:06]} 5. c3 {[%emt 0:00:13]} d6 {[%emt 0:00:27]} 6. O-O {[%emt 0:00:16]} a5 {[%emt 0:00:17] C54: Giuoco Piano: 4 c3 Nf6, main lines with 5 d4 and 5 d3.} 7. Re1 {[%emt 0:03:17]} Ba7 {[%emt 0:00:29]} 8. Nbd2 {[%emt 0:09:57][%cal Bb1d2,Bd2f1,Bf1g3][%mdl 32]} O-O {[%emt 0:01:27]} 9. Nf1 {[%emt 0:00:54]} Be6 {[%emt 0:09:32]} 10. Bxe6 {[%emt 0:05:10]} fxe6 {[%emt 0:00:02]} 11. Be3 {[%emt 0:00:20]} (11. Ng3 {keeps more tension.} Ng4 12. Re2 a4 13. h3) 11... Bxe3 {[%emt 0:00:13] [#]} 12. Rxe3 $146 {[%emt 0:00:11]} ({Predecessor:} 12. Nxe3 a4 13. b4 axb3 14. axb3 Qd7 15. b4 Ne7 16. Qb3 h6 17. Nd2 Ng6 18. g3 {1-0 (54) Ponomariov,R (2675)-Cheparinov,I (2667) Hengshui 2019}) 12... Qd7 {[%emt 0:02:58]} 13. Rc1 {[%emt 0:02:39]} a4 {[%emt 0:01:22]} 14. Ng3 {[%emt 0:04:04]} Qf7 {[%emt 0:03:18]} 15. d4 {[%emt 0:05:20]} h6 {[%emt 0:04:49]} 16. Qe2 {[%emt 0:02:14]} Ra5 {[%emt 0:04:15]} 17. h3 {[%emt 0:03:40]} Nh5 {[%emt 0:02:35]} 18. Nxh5 {[%emt 0:03:22]} Qxh5 {[%emt 0:00:03]} 19. Rd1 {[%emt 0:03:21]} Qf7 {[%emt 0:07:54]} 20. a3 {[%emt 0:01:44]} exd4 {[%emt 0:19:09]} 21. cxd4 {[%emt 0:00:21]} Ne7 {[%emt 0:03:45]} 22. g3 {[%emt 0:03:44]} Nc8 {[%emt 0:04:49]} 23. Nh4 {[%emt 0:07:52][%cal Bf3h4,Bh4g6,Bg6e5][%mdl 32]} Nb6 {[%emt 0:07:12]} 24. e5 {[%emt 0:07:28]} dxe5 {[%emt 0:06:53]} 25. Rf3 {[%emt 0:00:20]} Qe8 {[%emt 0:01:07]} 26. Rxf8+ {[%emt 0:00:07]} Qxf8 {[%emt 0:00:51]} 27. Ng6 {[%emt 0:02:39]} Qe8 {[%emt 0:00:47]} 28. Nxe5 {[%emt 0:00:18]} Rd5 {[%emt 0:00:17]} 29. Qc2 {[%emt 0:11:19]} Qd8 {[%emt 0:03:13]} 30. Rd3 {[%emt 0:02:00] Hoping for Rf3.} ({Don't blunder} 30. Qg6 $2 Rxe5 31. Qd3 Rd5 $19) 30... Rxd4 {[%emt 0:07:29]} 31. Rxd4 {[%emt 0:01:16]} Qxd4 {[%emt 0:00:08]} 32. Qxc7 {[%emt 0:00:04]} Kh7 {[%emt 0:02:45]} 33. Qc2+ {[%emt 0:04:58]} Kg8 $1 {[%emt 0:00:02]} 34. Qe2 {[%emt 0:00:53]} ({Don't play} 34. Qc7 $6 Kh7 $16) 34... Nd7 {[%emt 0:01:19]} 35. Nxd7 {[%emt 0:03:08] Weighted Error Value: White=0.04 (flawless) /Black=0.03 (flawless)} 1/2-1/2

[Event "10th Norway Chess 2022"]
[Site "Stavanger"]
[Date "2022.06.10"]
[Round "9.1"]
[White "Tari, Aryan"]
[Black "Anand, Viswanathan"]
[Result "1/2-1/2"]
[ECO "C83"]
[WhiteElo "2654"]
[BlackElo "2751"]
[Annotator "TA"]
[PlyCount "43"]
[EventDate "2022.05.30"]
[EventType "tourn"]
[EventCountry "NOR"]
[SourceTitle "playchess.com"]
[Source "ChessBase"]
[SourceQuality "1"]
[TimeControl "40/7200:0"]

{[%evp 18,43,27,17,6,9,11,22,27,0,0,0,0,0,0,0,0,0,0,0,0,0,0,0,0,0,0,0]} 1. e4 {[%emt 0:00:03]} e5 {[%emt 0:00:07]} 2. Nf3 {[%emt 0:00:07]} Nc6 {[%emt 0:00:06]} 3. Bb5 {[%emt 0:00:19][%cal Bf1b5,Bb5a4,Ba4b3,Bb3c2][%mdl 32]} a6 {[%emt 0:00:08]} 4. Ba4 {[%emt 0:00:08]} Nf6 {[%emt 0:00:11]} 5. O-O {[%emt 0:00:11]} Nxe4 {[%emt 0:00:09]} 6. d4 {[%emt 0:00:25]} b5 {[%emt 0:00:07]} 7. Bb3 {[%emt 0:00:06]} d5 {[%emt 0:00:07]} 8. dxe5 {[%emt 0:00:32]} Be6 {[%emt 0:00:07]} 9. c3 {[%emt 0:03:12]} Be7 {[%emt 0:00:31]} 10. Bc2 {[%emt 0:01:28]} Bg4 {[%emt 0:01:19] C83: Open Ruy Lopez: 9 c3 Be7.} 11. Qe1 {[%emt 0:00:45]} Bxf3 {[%emt 0:05:45]} 12. gxf3 {[%emt 0:00:14]} Nc5 {[%emt 0:00:51]} (12... Nxe5 $2 13. Qe2 $18) 13. b4 {[%emt 0:34:10] [#]} Na4 $146 {[%emt 0:06:51] The position is equal.} ({Predecessor:} 13... Ne6 14. f4 g6 15. Qe2 Bf8 16. a4 Rb8 17. axb5 axb5 18. Kh1 Qh4 19. Qf3 Ne7 {1-0 (53) Haria,R (2490)-Girya,O (2405) Gibraltar 2022}) 14. f4 {[%emt 0:01:41]} Qd7 {[%emt 0:09:51]} 15. Qe2 {[%emt 0:06:09] Prevents Qg4+.} Nxc3 {[%emt 0:12:20]} 16. Nxc3 {[%emt 0:00:14]} Nd4 {[%emt 0:00:06]} 17. Qd1 {[%emt 0:02:05] [#] Black must now prevent f5.} Nxc2 {[%emt 0:00:20]} 18. Qxc2 {[%emt 0:00:11] Qd3 is the strong threat.} Qg4+ {[%emt 0:00:05]} 19. Kh1 {[%emt 0:00:04] aiming for Qd3.} Qf3+ {[%emt 0:00:08]} 20. Kg1 {[%emt 0:00:05] Hoping for Ne2.} Qg4+ {[%emt 0:00:06]} 21. Kh1 {[%emt 0:00:03] [#] Threatens to win with Qd3.} Qf3+ {[%emt 0:00:11]} 22. Kg1 {[%emt 0:00:05] An even fight not without its subleties.  Weighted Error Value: White=0.06 (flawless) /Black=0.01 (flawless)} 1/2-1/2